Workbook

Sheet Índice
B13: CUENTAS NACIONALES ANUALES
B14: Equilibrios de oferta y utilización
B15: Año de referencia 2013
B17: 3 | C17: EQUILIBRIOS DE OFERTA Y UTILIZACIÓN. AÑOS 2013 - 2024
C19: Equilibrios de oferta y utilización por producto. Millones de quetzales
C21: Catálogo
C23: Generar todos los equilibrios
B26: Nota: | C26: Para generar un equilibrio de oferta y utilización debe habilitar macros (en las opciones de Excel) y posteriormente seleccionar el código NPG correspondiente en la hoja catálogo.

Sheet Equilibrio Oferta-Utilización
B2: =+CONCATENATE("Cuadro ",IFERROR(INDEX(Catálogo!$B$7:$D$158,MATCH($C$8,Catálogo!$C$7:$C$158,0),1),3)) -> Cuadro 3.1
B3: Equilibrio de oferta y utilización
B4: Años 2013 - 2024
B5: Millones de quetzales
B7: Producto: | C7: =IFERROR(+VLOOKUP($C$8,Catálogo!$C:$D,2,0),"") -> Maíz
B8: Código NPG: | C8: P001 | O8: Catálogo
B10: Concepto | D10: 2013 | E10: 2014 | F10: 2015 | G10: 2016 | H10: 2017 | I10: 2018 | J10: 2019 | K10: 2020 | L10: 2021 | M10: 2022 | N10: 2023 p/ | O10: 2024 p/
B11: Producción (PB) | D11: =+SUMIFS(Datos!$C:$C,Datos!$A:$A,$C$8,Datos!$B:$B,$C$7,Datos!$D:$D,$B11,Datos!$E:$E,D$10) -> 4738.527595 | E11: =+SUMIFS(Datos!$C:$C,Datos!$A:$A,$C$8,Datos!$B:$B,$C$7,Datos!$D:$D,$B11,Datos!$E:$E,E$10) -> 5080.602754 | F11: =+SUMIFS(Datos!$C:$C,Datos!$A:$A,$C$8,Datos!$B:$B,$C$7,Datos!$D:$D,$B11,Datos!$E:$E,F$10) -> 5175.017296 | G11: =+SUMIFS(Datos!$C:$C,Datos!$A:$A,$C$8,Datos!$B:$B,$C$7,Datos!$D:$D,$B11,Datos!$E:$E,G$10) -> 5476.152933 | H11: =+SUMIFS(Datos!$C:$C,Datos!$A:$A,$C$8,Datos!$B:$B,$C$7,Datos!$D:$D,$B11,Datos!$E:$E,H$10) -> 4756.547328 | I11: =+SUMIFS(Datos!$C:$C,Datos!$A:$A,$C$8,Datos!$B:$B,$C$7,Datos!$D:$D,$B11,Datos!$E:$E,I$10) -> 5390.460652 | J11: =+SUMIFS(Datos!$C:$C,Datos!$A:$A,$C$8,Datos!$B:$B,$C$7,Datos!$D:$D,$B11,Datos!$E:$E,J$10) -> 5873.992231 | K11: =+SUMIFS(Datos!$C:$C,Datos!$A:$A,$C$8,Datos!$B:$B,$C$7,Datos!$D:$D,$B11,Datos!$E:$E,K$10) -> 5947.63829 | L11: =+SUMIFS(Datos!$C:$C,Datos!$A:$A,$C$8,Datos!$B:$B,$C$7,Datos!$D:$D,$B11,Datos!$E:$E,L$10) -> 6685.43984 | M11: =+SUMIFS(Datos!$C:$C,Datos!$A:$A,$C$8,Datos!$B:$B,$C$7,Datos!$D:$D,$B11,Datos!$E:$E,M$10) -> 8902.33758 | N11: =+SUMIFS(Datos!$C:$C,Datos!$A:$A,$C$8,Datos!$B:$B,$C$7,Datos!$D:$D,$B11,Datos!$E:$E,N$10) -> 9871.892206 | O11: =+SUMIFS(Datos!$C:$C,Datos!$A:$A,$C$8,Datos!$B:$B,$C$7,Datos!$D:$D,$B11,Datos!$E:$E,O$10) -> 9132.177121
B12: Impuestos sobre los productos, excepto IVA e impuestos sobre las importaciones | D12: =+SUMIFS(Datos!$C:$C,Datos!$A:$A,$C$8,Datos!$B:$B,$C$7,Datos!$D:$D,$B12,Datos!$E:$E,D$10) -> 0 | E12: =+SUMIFS(Datos!$C:$C,Datos!$A:$A,$C$8,Datos!$B:$B,$C$7,Datos!$D:$D,$B12,Datos!$E:$E,E$10) -> 0 | F12: =+SUMIFS(Datos!$C:$C,Datos!$A:$A,$C$8,Datos!$B:$B,$C$7,Datos!$D:$D,$B12,Datos!$E:$E,F$10) -> 0 | G12: =+SUMIFS(Datos!$C:$C,Datos!$A:$A,$C$8,Datos!$B:$B,$C$7,Datos!$D:$D,$B12,Datos!$E:$E,G$10) -> 0 | H12: =+SUMIFS(Datos!$C:$C,Datos!$A:$A,$C$8,Datos!$B:$B,$C$7,Datos!$D:$D,$B12,Datos!$E:$E,H$10) -> 0 | I12: =+SUMIFS(Datos!$C:$C,Datos!$A:$A,$C$8,Datos!$B:$B,$C$7,Datos!$D:$D,$B12,Datos!$E:$E,I$10) -> 0 | J12: =+SUMIFS(Datos!$C:$C,Datos!$A:$A,$C$8,Datos!$B:$B,$C$7,Datos!$D:$D,$B12,Datos!$E:$E,J$10) -> 0 | K12: =+SUMIFS(Datos!$C:$C,Datos!$A:$A,$C$8,Datos!$B:$B,$C$7,Datos!$D:$D,$B12,Datos!$E:$E,K$10) -> 0 | L12: =+SUMIFS(Datos!$C:$C,Datos!$A:$A,$C$8,Datos!$B:$B,$C$7,Datos!$D:$D,$B12,Datos!$E:$E,L$10) -> 0 | M12: =+SUMIFS(Datos!$C:$C,Datos!$A:$A,$C$8,Datos!$B:$B,$C$7,Datos!$D:$D,$B12,Datos!$E:$E,M$10) -> 0 | N12: =+SUMIFS(Datos!$C:$C,Datos!$A:$A,$C$8,Datos!$B:$B,$C$7,Datos!$D:$D,$B12,Datos!$E:$E,N$10) -> 0 | O12: =+SUMIFS(Datos!$C:$C,Datos!$A:$A,$C$8,Datos!$B:$B,$C$7,Datos!$D:$D,$B12,Datos!$E:$E,O$10) -> 0
B13: Subvenciones a los productos | D13: =+SUMIFS(Datos!$C:$C,Datos!$A:$A,$C$8,Datos!$B:$B,$C$7,Datos!$D:$D,$B13,Datos!$E:$E,D$10) -> 0 | E13: =+SUMIFS(Datos!$C:$C,Datos!$A:$A,$C$8,Datos!$B:$B,$C$7,Datos!$D:$D,$B13,Datos!$E:$E,E$10) -> 0 | F13: =+SUMIFS(Datos!$C:$C,Datos!$A:$A,$C$8,Datos!$B:$B,$C$7,Datos!$D:$D,$B13,Datos!$E:$E,F$10) -> 0 | G13: =+SUMIFS(Datos!$C:$C,Datos!$A:$A,$C$8,Datos!$B:$B,$C$7,Datos!$D:$D,$B13,Datos!$E:$E,G$10) -> 0 | H13: =+SUMIFS(Datos!$C:$C,Datos!$A:$A,$C$8,Datos!$B:$B,$C$7,Datos!$D:$D,$B13,Datos!$E:$E,H$10) -> 0 | I13: =+SUMIFS(Datos!$C:$C,Datos!$A:$A,$C$8,Datos!$B:$B,$C$7,Datos!$D:$D,$B13,Datos!$E:$E,I$10) -> 0 | J13: =+SUMIFS(Datos!$C:$C,Datos!$A:$A,$C$8,Datos!$B:$B,$C$7,Datos!$D:$D,$B13,Datos!$E:$E,J$10) -> 0 | K13: =+SUMIFS(Datos!$C:$C,Datos!$A:$A,$C$8,Datos!$B:$B,$C$7,Datos!$D:$D,$B13,Datos!$E:$E,K$10) -> 0 | L13: =+SUMIFS(Datos!$C:$C,Datos!$A:$A,$C$8,Datos!$B:$B,$C$7,Datos!$D:$D,$B13,Datos!$E:$E,L$10) -> 0 | M13: =+SUMIFS(Datos!$C:$C,Datos!$A:$A,$C$8,Datos!$B:$B,$C$7,Datos!$D:$D,$B13,Datos!$E:$E,M$10) -> 0 | N13: =+SUMIFS(Datos!$C:$C,Datos!$A:$A,$C$8,Datos!$B:$B,$C$7,Datos!$D:$D,$B13,Datos!$E:$E,N$10) -> 0 | O13: =+SUMIFS(Datos!$C:$C,Datos!$A:$A,$C$8,Datos!$B:$B,$C$7,Datos!$D:$D,$B13,Datos!$E:$E,O$10) -> 0
B14: Importaciones (CIF) | D14: =+SUMIFS(Datos!$C:$C,Datos!$A:$A,$C$8,Datos!$B:$B,$C$7,Datos!$D:$D,$B14,Datos!$E:$E,D$10) -> 1926.576568 | E14: =+SUMIFS(Datos!$C:$C,Datos!$A:$A,$C$8,Datos!$B:$B,$C$7,Datos!$D:$D,$B14,Datos!$E:$E,E$10) -> 1956.010428 | F14: =+SUMIFS(Datos!$C:$C,Datos!$A:$A,$C$8,Datos!$B:$B,$C$7,Datos!$D:$D,$B14,Datos!$E:$E,F$10) -> 1937.528463 | G14: =+SUMIFS(Datos!$C:$C,Datos!$A:$A,$C$8,Datos!$B:$B,$C$7,Datos!$D:$D,$B14,Datos!$E:$E,G$10) -> 1962.769179 | H14: =+SUMIFS(Datos!$C:$C,Datos!$A:$A,$C$8,Datos!$B:$B,$C$7,Datos!$D:$D,$B14,Datos!$E:$E,H$10) -> 1866.521152 | I14: =+SUMIFS(Datos!$C:$C,Datos!$A:$A,$C$8,Datos!$B:$B,$C$7,Datos!$D:$D,$B14,Datos!$E:$E,I$10) -> 2096.170867 | J14: =+SUMIFS(Datos!$C:$C,Datos!$A:$A,$C$8,Datos!$B:$B,$C$7,Datos!$D:$D,$B14,Datos!$E:$E,J$10) -> 2504.79537 | K14: =+SUMIFS(Datos!$C:$C,Datos!$A:$A,$C$8,Datos!$B:$B,$C$7,Datos!$D:$D,$B14,Datos!$E:$E,K$10) -> 2725.149761 | L14: =+SUMIFS(Datos!$C:$C,Datos!$A:$A,$C$8,Datos!$B:$B,$C$7,Datos!$D:$D,$B14,Datos!$E:$E,L$10) -> 3673.026031 | M14: =+SUMIFS(Datos!$C:$C,Datos!$A:$A,$C$8,Datos!$B:$B,$C$7,Datos!$D:$D,$B14,Datos!$E:$E,M$10) -> 4859.730139 | N14: =+SUMIFS(Datos!$C:$C,Datos!$A:$A,$C$8,Datos!$B:$B,$C$7,Datos!$D:$D,$B14,Datos!$E:$E,N$10) -> 4494.09576 | O14: =+SUMIFS(Datos!$C:$C,Datos!$A:$A,$C$8,Datos!$B:$B,$C$7,Datos!$D:$D,$B14,Datos!$E:$E,O$10) -> 4430.921709
B15: Ajuste CIF/FOB | D15: =+SUMIFS(Datos!$C:$C,Datos!$A:$A,$C$8,Datos!$B:$B,$C$7,Datos!$D:$D,$B15,Datos!$E:$E,D$10) -> 0 | E15: =+SUMIFS(Datos!$C:$C,Datos!$A:$A,$C$8,Datos!$B:$B,$C$7,Datos!$D:$D,$B15,Datos!$E:$E,E$10) -> 0 | F15: =+SUMIFS(Datos!$C:$C,Datos!$A:$A,$C$8,Datos!$B:$B,$C$7,Datos!$D:$D,$B15,Datos!$E:$E,F$10) -> 0 | G15: =+SUMIFS(Datos!$C:$C,Datos!$A:$A,$C$8,Datos!$B:$B,$C$7,Datos!$D:$D,$B15,Datos!$E:$E,G$10) -> 0 | H15: =+SUMIFS(Datos!$C:$C,Datos!$A:$A,$C$8,Datos!$B:$B,$C$7,Datos!$D:$D,$B15,Datos!$E:$E,H$10) -> 0 | I15: =+SUMIFS(Datos!$C:$C,Datos!$A:$A,$C$8,Datos!$B:$B,$C$7,Datos!$D:$D,$B15,Datos!$E:$E,I$10) -> 0 | J15: =+SUMIFS(Datos!$C:$C,Datos!$A:$A,$C$8,Datos!$B:$B,$C$7,Datos!$D:$D,$B15,Datos!$E:$E,J$10) -> 0 | K15: =+SUMIFS(Datos!$C:$C,Datos!$A:$A,$C$8,Datos!$B:$B,$C$7,Datos!$D:$D,$B15,Datos!$E:$E,K$10) -> 0 | L15: =+SUMIFS(Datos!$C:$C,Datos!$A:$A,$C$8,Datos!$B:$B,$C$7,Datos!$D:$D,$B15,Datos!$E:$E,L$10) -> 0 | M15: =+SUMIFS(Datos!$C:$C,Datos!$A:$A,$C$8,Datos!$B:$B,$C$7,Datos!$D:$D,$B15,Datos!$E:$E,M$10) -> 0 | N15: =+SUMIFS(Datos!$C:$C,Datos!$A:$A,$C$8,Datos!$B:$B,$C$7,Datos!$D:$D,$B15,Datos!$E:$E,N$10) -> 0 | O15: =+SUMIFS(Datos!$C:$C,Datos!$A:$A,$C$8,Datos!$B:$B,$C$7,Datos!$D:$D,$B15,Datos!$E:$E,O$10) -> 0
B16: Impuestos y derechos sobre las importaciones excepto IVA | D16: =+SUMIFS(Datos!$C:$C,Datos!$A:$A,$C$8,Datos!$B:$B,$C$7,Datos!$D:$D,$B16,Datos!$E:$E,D$10) -> 0.013095 | E16: =+SUMIFS(Datos!$C:$C,Datos!$A:$A,$C$8,Datos!$B:$B,$C$7,Datos!$D:$D,$B16,Datos!$E:$E,E$10) -> 0.012174 | F16: =+SUMIFS(Datos!$C:$C,Datos!$A:$A,$C$8,Datos!$B:$B,$C$7,Datos!$D:$D,$B16,Datos!$E:$E,F$10) -> 0.012119 | G16: =+SUMIFS(Datos!$C:$C,Datos!$A:$A,$C$8,Datos!$B:$B,$C$7,Datos!$D:$D,$B16,Datos!$E:$E,G$10) -> 1.207867 | H16: =+SUMIFS(Datos!$C:$C,Datos!$A:$A,$C$8,Datos!$B:$B,$C$7,Datos!$D:$D,$B16,Datos!$E:$E,H$10) -> 0.114446 | I16: =+SUMIFS(Datos!$C:$C,Datos!$A:$A,$C$8,Datos!$B:$B,$C$7,Datos!$D:$D,$B16,Datos!$E:$E,I$10) -> 0.12887 | J16: =+SUMIFS(Datos!$C:$C,Datos!$A:$A,$C$8,Datos!$B:$B,$C$7,Datos!$D:$D,$B16,Datos!$E:$E,J$10) -> 0.154243 | K16: =+SUMIFS(Datos!$C:$C,Datos!$A:$A,$C$8,Datos!$B:$B,$C$7,Datos!$D:$D,$B16,Datos!$E:$E,K$10) -> 0.168057 | L16: =+SUMIFS(Datos!$C:$C,Datos!$A:$A,$C$8,Datos!$B:$B,$C$7,Datos!$D:$D,$B16,Datos!$E:$E,L$10) -> 0.226512 | M16: =+SUMIFS(Datos!$C:$C,Datos!$A:$A,$C$8,Datos!$B:$B,$C$7,Datos!$D:$D,$B16,Datos!$E:$E,M$10) -> 0.343692 | N16: =+SUMIFS(Datos!$C:$C,Datos!$A:$A,$C$8,Datos!$B:$B,$C$7,Datos!$D:$D,$B16,Datos!$E:$E,N$10) -> 0.317834 | O16: =+SUMIFS(Datos!$C:$C,Datos!$A:$A,$C$8,Datos!$B:$B,$C$7,Datos!$D:$D,$B16,Datos!$E:$E,O$10) -> 0.313366
B17: Impuesto tipo valor agregado (IVA) | D17: =+SUMIFS(Datos!$C:$C,Datos!$A:$A,$C$8,Datos!$B:$B,$C$7,Datos!$D:$D,$B17,Datos!$E:$E,D$10) -> 56.302074 | E17: =+SUMIFS(Datos!$C:$C,Datos!$A:$A,$C$8,Datos!$B:$B,$C$7,Datos!$D:$D,$B17,Datos!$E:$E,E$10) -> 64.448783 | F17: =+SUMIFS(Datos!$C:$C,Datos!$A:$A,$C$8,Datos!$B:$B,$C$7,Datos!$D:$D,$B17,Datos!$E:$E,F$10) -> 63.156509 | G17: =+SUMIFS(Datos!$C:$C,Datos!$A:$A,$C$8,Datos!$B:$B,$C$7,Datos!$D:$D,$B17,Datos!$E:$E,G$10) -> 66.6374 | H17: =+SUMIFS(Datos!$C:$C,Datos!$A:$A,$C$8,Datos!$B:$B,$C$7,Datos!$D:$D,$B17,Datos!$E:$E,H$10) -> 74.990101 | I17: =+SUMIFS(Datos!$C:$C,Datos!$A:$A,$C$8,Datos!$B:$B,$C$7,Datos!$D:$D,$B17,Datos!$E:$E,I$10) -> 75.529437 | J17: =+SUMIFS(Datos!$C:$C,Datos!$A:$A,$C$8,Datos!$B:$B,$C$7,Datos!$D:$D,$B17,Datos!$E:$E,J$10) -> 83.781883 | K17: =+SUMIFS(Datos!$C:$C,Datos!$A:$A,$C$8,Datos!$B:$B,$C$7,Datos!$D:$D,$B17,Datos!$E:$E,K$10) -> 106.756379 | L17: =+SUMIFS(Datos!$C:$C,Datos!$A:$A,$C$8,Datos!$B:$B,$C$7,Datos!$D:$D,$B17,Datos!$E:$E,L$10) -> 119.76886 | M17: =+SUMIFS(Datos!$C:$C,Datos!$A:$A,$C$8,Datos!$B:$B,$C$7,Datos!$D:$D,$B17,Datos!$E:$E,M$10) -> 157.707884 | N17: =+SUMIFS(Datos!$C:$C,Datos!$A:$A,$C$8,Datos!$B:$B,$C$7,Datos!$D:$D,$B17,Datos!$E:$E,N$10) -> 184.87211 | O17: =+SUMIFS(Datos!$C:$C,Datos!$A:$A,$C$8,Datos!$B:$B,$C$7,Datos!$D:$D,$B17,Datos!$E:$E,O$10) -> 184.445156
B18: Márgenes de comercio, transporte y distribución de energía | D18: =+SUMIFS(Datos!$C:$C,Datos!$A:$A,$C$8,Datos!$B:$B,$C$7,Datos!$D:$D,$B18,Datos!$E:$E,D$10) -> 1236.194145 | E18: =+SUMIFS(Datos!$C:$C,Datos!$A:$A,$C$8,Datos!$B:$B,$C$7,Datos!$D:$D,$B18,Datos!$E:$E,E$10) -> 1105.703635 | F18: =+SUMIFS(Datos!$C:$C,Datos!$A:$A,$C$8,Datos!$B:$B,$C$7,Datos!$D:$D,$B18,Datos!$E:$E,F$10) -> 1264.350194 | G18: =+SUMIFS(Datos!$C:$C,Datos!$A:$A,$C$8,Datos!$B:$B,$C$7,Datos!$D:$D,$B18,Datos!$E:$E,G$10) -> 1207.606935 | H18: =+SUMIFS(Datos!$C:$C,Datos!$A:$A,$C$8,Datos!$B:$B,$C$7,Datos!$D:$D,$B18,Datos!$E:$E,H$10) -> 1775.464511 | I18: =+SUMIFS(Datos!$C:$C,Datos!$A:$A,$C$8,Datos!$B:$B,$C$7,Datos!$D:$D,$B18,Datos!$E:$E,I$10) -> 1862.070173 | J18: =+SUMIFS(Datos!$C:$C,Datos!$A:$A,$C$8,Datos!$B:$B,$C$7,Datos!$D:$D,$B18,Datos!$E:$E,J$10) -> 2076.72184 | K18: =+SUMIFS(Datos!$C:$C,Datos!$A:$A,$C$8,Datos!$B:$B,$C$7,Datos!$D:$D,$B18,Datos!$E:$E,K$10) -> 2337.992727 | L18: =+SUMIFS(Datos!$C:$C,Datos!$A:$A,$C$8,Datos!$B:$B,$C$7,Datos!$D:$D,$B18,Datos!$E:$E,L$10) -> 2567.68416 | M18: =+SUMIFS(Datos!$C:$C,Datos!$A:$A,$C$8,Datos!$B:$B,$C$7,Datos!$D:$D,$B18,Datos!$E:$E,M$10) -> 3442.824472 | N18: =+SUMIFS(Datos!$C:$C,Datos!$A:$A,$C$8,Datos!$B:$B,$C$7,Datos!$D:$D,$B18,Datos!$E:$E,N$10) -> 4139.066411 | O18: =+SUMIFS(Datos!$C:$C,Datos!$A:$A,$C$8,Datos!$B:$B,$C$7,Datos!$D:$D,$B18,Datos!$E:$E,O$10) -> 4330.578123
B19: Oferta total | D19: =+SUM(D11:D18) -> 7957.613477 | E19: 8206.777774 | F19: 8440.064581 | G19: 8714.374314 | H19: 8473.637538 | I19: 9424.359999 | J19: =+SUM(J11:J18) -> 10539.44557 | K19: 11117.70521 | L19: 13046.1454 | M19: =+SUM(M11:M18) -> 17362.94377 | N19: 18690.24432 | O19: =+SUM(O11:O18) -> 18078.43548
B20: Consumo intermedio (PC) | D20: =+SUMIFS(Datos!$C:$C,Datos!$A:$A,$C$8,Datos!$B:$B,$C$7,Datos!$D:$D,$B20,Datos!$E:$E,D$10) -> 3302.630165 | E20: =+SUMIFS(Datos!$C:$C,Datos!$A:$A,$C$8,Datos!$B:$B,$C$7,Datos!$D:$D,$B20,Datos!$E:$E,E$10) -> 3412.497131 | F20: =+SUMIFS(Datos!$C:$C,Datos!$A:$A,$C$8,Datos!$B:$B,$C$7,Datos!$D:$D,$B20,Datos!$E:$E,F$10) -> 3476.539012 | G20: =+SUMIFS(Datos!$C:$C,Datos!$A:$A,$C$8,Datos!$B:$B,$C$7,Datos!$D:$D,$B20,Datos!$E:$E,G$10) -> 3597.507716 | H20: =+SUMIFS(Datos!$C:$C,Datos!$A:$A,$C$8,Datos!$B:$B,$C$7,Datos!$D:$D,$B20,Datos!$E:$E,H$10) -> 3274.129362 | I20: =+SUMIFS(Datos!$C:$C,Datos!$A:$A,$C$8,Datos!$B:$B,$C$7,Datos!$D:$D,$B20,Datos!$E:$E,I$10) -> 3704.262179 | J20: =+SUMIFS(Datos!$C:$C,Datos!$A:$A,$C$8,Datos!$B:$B,$C$7,Datos!$D:$D,$B20,Datos!$E:$E,J$10) -> 4065.477832 | K20: =+SUMIFS(Datos!$C:$C,Datos!$A:$A,$C$8,Datos!$B:$B,$C$7,Datos!$D:$D,$B20,Datos!$E:$E,K$10) -> 4188.745291 | L20: =+SUMIFS(Datos!$C:$C,Datos!$A:$A,$C$8,Datos!$B:$B,$C$7,Datos!$D:$D,$B20,Datos!$E:$E,L$10) -> 5290.644644 | M20: =+SUMIFS(Datos!$C:$C,Datos!$A:$A,$C$8,Datos!$B:$B,$C$7,Datos!$D:$D,$B20,Datos!$E:$E,M$10) -> 6888.398521 | N20: =+SUMIFS(Datos!$C:$C,Datos!$A:$A,$C$8,Datos!$B:$B,$C$7,Datos!$D:$D,$B20,Datos!$E:$E,N$10) -> 6837.738422 | O20: =+SUMIFS(Datos!$C:$C,Datos!$A:$A,$C$8,Datos!$B:$B,$C$7,Datos!$D:$D,$B20,Datos!$E:$E,O$10) -> 6048.981049
B21: Consumo final privado (PC) | D21: =+SUMIFS(Datos!$C:$C,Datos!$A:$A,$C$8,Datos!$B:$B,$C$7,Datos!$D:$D,$B21,Datos!$E:$E,D$10) -> 4580.036385 | E21: =+SUMIFS(Datos!$C:$C,Datos!$A:$A,$C$8,Datos!$B:$B,$C$7,Datos!$D:$D,$B21,Datos!$E:$E,E$10) -> 4664.576077 | F21: =+SUMIFS(Datos!$C:$C,Datos!$A:$A,$C$8,Datos!$B:$B,$C$7,Datos!$D:$D,$B21,Datos!$E:$E,F$10) -> 4908.797355 | G21: =+SUMIFS(Datos!$C:$C,Datos!$A:$A,$C$8,Datos!$B:$B,$C$7,Datos!$D:$D,$B21,Datos!$E:$E,G$10) -> 5030.794402 | H21: =+SUMIFS(Datos!$C:$C,Datos!$A:$A,$C$8,Datos!$B:$B,$C$7,Datos!$D:$D,$B21,Datos!$E:$E,H$10) -> 5138.90544 | I21: =+SUMIFS(Datos!$C:$C,Datos!$A:$A,$C$8,Datos!$B:$B,$C$7,Datos!$D:$D,$B21,Datos!$E:$E,I$10) -> 5726.608776 | J21: =+SUMIFS(Datos!$C:$C,Datos!$A:$A,$C$8,Datos!$B:$B,$C$7,Datos!$D:$D,$B21,Datos!$E:$E,J$10) -> 6291.098953 | K21: =+SUMIFS(Datos!$C:$C,Datos!$A:$A,$C$8,Datos!$B:$B,$C$7,Datos!$D:$D,$B21,Datos!$E:$E,K$10) -> 6762.679476 | L21: =+SUMIFS(Datos!$C:$C,Datos!$A:$A,$C$8,Datos!$B:$B,$C$7,Datos!$D:$D,$B21,Datos!$E:$E,L$10) -> 7480.780309 | M21: =+SUMIFS(Datos!$C:$C,Datos!$A:$A,$C$8,Datos!$B:$B,$C$7,Datos!$D:$D,$B21,Datos!$E:$E,M$10) -> 10028.9605 | N21: =+SUMIFS(Datos!$C:$C,Datos!$A:$A,$C$8,Datos!$B:$B,$C$7,Datos!$D:$D,$B21,Datos!$E:$E,N$10) -> 11455.27212 | O21: =+SUMIFS(Datos!$C:$C,Datos!$A:$A,$C$8,Datos!$B:$B,$C$7,Datos!$D:$D,$B21,Datos!$E:$E,O$10) -> 11520.41687
B22: Consumo final del gobierno (PC) | D22: =+SUMIFS(Datos!$C:$C,Datos!$A:$A,$C$8,Datos!$B:$B,$C$7,Datos!$D:$D,$B22,Datos!$E:$E,D$10) -> 0 | E22: =+SUMIFS(Datos!$C:$C,Datos!$A:$A,$C$8,Datos!$B:$B,$C$7,Datos!$D:$D,$B22,Datos!$E:$E,E$10) -> 121.93507 | F22: =+SUMIFS(Datos!$C:$C,Datos!$A:$A,$C$8,Datos!$B:$B,$C$7,Datos!$D:$D,$B22,Datos!$E:$E,F$10) -> 34.29021 | G22: =+SUMIFS(Datos!$C:$C,Datos!$A:$A,$C$8,Datos!$B:$B,$C$7,Datos!$D:$D,$B22,Datos!$E:$E,G$10) -> 60.153328 | H22: =+SUMIFS(Datos!$C:$C,Datos!$A:$A,$C$8,Datos!$B:$B,$C$7,Datos!$D:$D,$B22,Datos!$E:$E,H$10) -> 70.978345 | I22: =+SUMIFS(Datos!$C:$C,Datos!$A:$A,$C$8,Datos!$B:$B,$C$7,Datos!$D:$D,$B22,Datos!$E:$E,I$10) -> 5.157955 | J22: =+SUMIFS(Datos!$C:$C,Datos!$A:$A,$C$8,Datos!$B:$B,$C$7,Datos!$D:$D,$B22,Datos!$E:$E,J$10) -> 11.485081 | K22: =+SUMIFS(Datos!$C:$C,Datos!$A:$A,$C$8,Datos!$B:$B,$C$7,Datos!$D:$D,$B22,Datos!$E:$E,K$10) -> 169.925672 | L22: =+SUMIFS(Datos!$C:$C,Datos!$A:$A,$C$8,Datos!$B:$B,$C$7,Datos!$D:$D,$B22,Datos!$E:$E,L$10) -> 207.840145 | M22: =+SUMIFS(Datos!$C:$C,Datos!$A:$A,$C$8,Datos!$B:$B,$C$7,Datos!$D:$D,$B22,Datos!$E:$E,M$10) -> 250.561893 | N22: =+SUMIFS(Datos!$C:$C,Datos!$A:$A,$C$8,Datos!$B:$B,$C$7,Datos!$D:$D,$B22,Datos!$E:$E,N$10) -> 352.773884 | O22: =+SUMIFS(Datos!$C:$C,Datos!$A:$A,$C$8,Datos!$B:$B,$C$7,Datos!$D:$D,$B22,Datos!$E:$E,O$10) -> 310.91179
B23: Formación bruta de capital fijo (PC) | D23: =+SUMIFS(Datos!$C:$C,Datos!$A:$A,$C$8,Datos!$B:$B,$C$7,Datos!$D:$D,$B23,Datos!$E:$E,D$10) -> 0 | E23: =+SUMIFS(Datos!$C:$C,Datos!$A:$A,$C$8,Datos!$B:$B,$C$7,Datos!$D:$D,$B23,Datos!$E:$E,E$10) -> 0 | F23: =+SUMIFS(Datos!$C:$C,Datos!$A:$A,$C$8,Datos!$B:$B,$C$7,Datos!$D:$D,$B23,Datos!$E:$E,F$10) -> 0 | G23: =+SUMIFS(Datos!$C:$C,Datos!$A:$A,$C$8,Datos!$B:$B,$C$7,Datos!$D:$D,$B23,Datos!$E:$E,G$10) -> 0 | H23: =+SUMIFS(Datos!$C:$C,Datos!$A:$A,$C$8,Datos!$B:$B,$C$7,Datos!$D:$D,$B23,Datos!$E:$E,H$10) -> 0 | I23: =+SUMIFS(Datos!$C:$C,Datos!$A:$A,$C$8,Datos!$B:$B,$C$7,Datos!$D:$D,$B23,Datos!$E:$E,I$10) -> 0 | J23: =+SUMIFS(Datos!$C:$C,Datos!$A:$A,$C$8,Datos!$B:$B,$C$7,Datos!$D:$D,$B23,Datos!$E:$E,J$10) -> 0 | K23: =+SUMIFS(Datos!$C:$C,Datos!$A:$A,$C$8,Datos!$B:$B,$C$7,Datos!$D:$D,$B23,Datos!$E:$E,K$10) -> 0 | L23: =+SUMIFS(Datos!$C:$C,Datos!$A:$A,$C$8,Datos!$B:$B,$C$7,Datos!$D:$D,$B23,Datos!$E:$E,L$10) -> 0 | M23: =+SUMIFS(Datos!$C:$C,Datos!$A:$A,$C$8,Datos!$B:$B,$C$7,Datos!$D:$D,$B23,Datos!$E:$E,M$10) -> 0 | N23: =+SUMIFS(Datos!$C:$C,Datos!$A:$A,$C$8,Datos!$B:$B,$C$7,Datos!$D:$D,$B23,Datos!$E:$E,N$10) -> 0 | O23: =+SUMIFS(Datos!$C:$C,Datos!$A:$A,$C$8,Datos!$B:$B,$C$7,Datos!$D:$D,$B23,Datos!$E:$E,O$10) -> 0
B24: Variación de existencias (PC) | D24: =+SUMIFS(Datos!$C:$C,Datos!$A:$A,$C$8,Datos!$B:$B,$C$7,Datos!$D:$D,$B24,Datos!$E:$E,D$10) -> 38.522312 | E24: =+SUMIFS(Datos!$C:$C,Datos!$A:$A,$C$8,Datos!$B:$B,$C$7,Datos!$D:$D,$B24,Datos!$E:$E,E$10) -> -7.968028 | F24: =+SUMIFS(Datos!$C:$C,Datos!$A:$A,$C$8,Datos!$B:$B,$C$7,Datos!$D:$D,$B24,Datos!$E:$E,F$10) -> -3.626186 | G24: =+SUMIFS(Datos!$C:$C,Datos!$A:$A,$C$8,Datos!$B:$B,$C$7,Datos!$D:$D,$B24,Datos!$E:$E,G$10) -> 4.345915 | H24: =+SUMIFS(Datos!$C:$C,Datos!$A:$A,$C$8,Datos!$B:$B,$C$7,Datos!$D:$D,$B24,Datos!$E:$E,H$10) -> -19.729437 | I24: =+SUMIFS(Datos!$C:$C,Datos!$A:$A,$C$8,Datos!$B:$B,$C$7,Datos!$D:$D,$B24,Datos!$E:$E,I$10) -> -20.213403 | J24: =+SUMIFS(Datos!$C:$C,Datos!$A:$A,$C$8,Datos!$B:$B,$C$7,Datos!$D:$D,$B24,Datos!$E:$E,J$10) -> 162.050272 | K24: =+SUMIFS(Datos!$C:$C,Datos!$A:$A,$C$8,Datos!$B:$B,$C$7,Datos!$D:$D,$B24,Datos!$E:$E,K$10) -> -13.196682 | L24: =+SUMIFS(Datos!$C:$C,Datos!$A:$A,$C$8,Datos!$B:$B,$C$7,Datos!$D:$D,$B24,Datos!$E:$E,L$10) -> 39.685734 | M24: =+SUMIFS(Datos!$C:$C,Datos!$A:$A,$C$8,Datos!$B:$B,$C$7,Datos!$D:$D,$B24,Datos!$E:$E,M$10) -> 103.189692 | N24: =+SUMIFS(Datos!$C:$C,Datos!$A:$A,$C$8,Datos!$B:$B,$C$7,Datos!$D:$D,$B24,Datos!$E:$E,N$10) -> -38.679377 | O24: =+SUMIFS(Datos!$C:$C,Datos!$A:$A,$C$8,Datos!$B:$B,$C$7,Datos!$D:$D,$B24,Datos!$E:$E,O$10) -> 156.228472
B25: Exportaciones (FOB) | D25: =+SUMIFS(Datos!$C:$C,Datos!$A:$A,$C$8,Datos!$B:$B,$C$7,Datos!$D:$D,$B25,Datos!$E:$E,D$10) -> 36.424615 | E25: =+SUMIFS(Datos!$C:$C,Datos!$A:$A,$C$8,Datos!$B:$B,$C$7,Datos!$D:$D,$B25,Datos!$E:$E,E$10) -> 15.737524 | F25: =+SUMIFS(Datos!$C:$C,Datos!$A:$A,$C$8,Datos!$B:$B,$C$7,Datos!$D:$D,$B25,Datos!$E:$E,F$10) -> 24.06419 | G25: =+SUMIFS(Datos!$C:$C,Datos!$A:$A,$C$8,Datos!$B:$B,$C$7,Datos!$D:$D,$B25,Datos!$E:$E,G$10) -> 21.572954 | H25: =+SUMIFS(Datos!$C:$C,Datos!$A:$A,$C$8,Datos!$B:$B,$C$7,Datos!$D:$D,$B25,Datos!$E:$E,H$10) -> 9.353829 | I25: =+SUMIFS(Datos!$C:$C,Datos!$A:$A,$C$8,Datos!$B:$B,$C$7,Datos!$D:$D,$B25,Datos!$E:$E,I$10) -> 8.544492 | J25: =+SUMIFS(Datos!$C:$C,Datos!$A:$A,$C$8,Datos!$B:$B,$C$7,Datos!$D:$D,$B25,Datos!$E:$E,J$10) -> 9.33343 | K25: =+SUMIFS(Datos!$C:$C,Datos!$A:$A,$C$8,Datos!$B:$B,$C$7,Datos!$D:$D,$B25,Datos!$E:$E,K$10) -> 9.551457 | L25: =+SUMIFS(Datos!$C:$C,Datos!$A:$A,$C$8,Datos!$B:$B,$C$7,Datos!$D:$D,$B25,Datos!$E:$E,L$10) -> 27.194572 | M25: =+SUMIFS(Datos!$C:$C,Datos!$A:$A,$C$8,Datos!$B:$B,$C$7,Datos!$D:$D,$B25,Datos!$E:$E,M$10) -> 91.833159 | N25: =+SUMIFS(Datos!$C:$C,Datos!$A:$A,$C$8,Datos!$B:$B,$C$7,Datos!$D:$D,$B25,Datos!$E:$E,N$10) -> 83.139271 | O25: =+SUMIFS(Datos!$C:$C,Datos!$A:$A,$C$8,Datos!$B:$B,$C$7,Datos!$D:$D,$B25,Datos!$E:$E,O$10) -> 41.897298
B26: Utilización total | D26: =+SUM(D20:D25) -> 7957.613477 | E26: 8206.777774 | F26: 8440.064581 | G26: =+SUM(G20:G25) -> 8714.374315 | H26: 8473.637539 | I26: =+SUM(I20:I25) -> 9424.359999 | J26: 10539.44557 | K26: 11117.70521 | L26: 13046.1454 | M26: 17362.94377 | N26: 18690.24432 | O26: =+SUM(O20:O25) -> 18078.43547
B28: Estructura porcentual
B30: Concepto | D30: 2013 | E30: 2014 | F30: 2015 | G30: 2016 | H30: 2017 | I30: 2018 | J30: 2019 | K30: 2020 | L30: 2021 | M30: 2022 | N30: 2023 p/ | O30: 2024 p/
B31: Producción (PB) | D31: =+IFERROR(D11/D$19*100,0) -> 59.54709422 | E31: 61.90740013 | F31: 61.31490164 | G31: 62.84046032 | H31: =+IFERROR(H11/H$19*100,0) -> 56.1334764 | I31: =+IFERROR(I11/I$19*100,0) -> 57.19710041 | J31: 55.73340831 | K31: 53.49699579 | L31: 51.24456024 | M31: 51.27205213 | N31: =+IFERROR(N11/N$19*100,0) -> 52.81842247 | O31: 50.51420038
B32: Impuestos sobre los productos, excepto IVA e impuestos sobre las importaciones | D32: 0 | E32: 0 | F32: 0 | G32: 0 | H32: 0 | I32: 0 | J32: 0 | K32: 0 | L32: 0 | M32: 0 | N32: =+IFERROR(N12/N$19*100,0) -> 0 | O32: 0
B33: Subvenciones a los productos | D33: 0 | E33: 0 | F33: 0 | G33: 0 | H33: 0 | I33: 0 | J33: 0 | K33: 0 | L33: 0 | M33: 0 | N33: =+IFERROR(N13/N$19*100,0) -> 0 | O33: 0
B34: Importaciones (CIF) | D34: 24.21048187 | E34: 23.83408546 | F34: 22.95632272 | G34: 22.52335174 | H34: 22.02738958 | I34: 22.24205004 | J34: 23.76591211 | K34: 24.51180085 | L34: 28.15410926 | M34: 27.98909104 | N34: =+IFERROR(N14/N$19*100,0) -> 24.04514185 | O34: 24.50943122
B35: Ajuste CIF/FOB | D35: 0 | E35: 0 | F35: 0 | G35: 0 | H35: 0 | I35: 0 | J35: 0 | K35: 0 | L35: 0 | M35: 0 | N35: =+IFERROR(N15/N$19*100,0) -> 0 | O35: 0
B36: Impuestos y derechos sobre las importaciones excepto IVA | D36: 0.0001645593875 | E36: 0.0001483408024 | F36: 0.0001435889487 | G36: 0.01386062793 | H36: 0.001350612408 | I36: 0.001367413809 | J36: 0.001463483055 | K36: 0.001511615902 | L36: 0.001736236973 | M36: 0.001979456967 | N36: =+IFERROR(N16/N$19*100,0) -> 0.001700534217 | O36: 0.001733369021
B37: Impuesto tipo valor agregado (IVA) | D37: 0.7075246135 | E37: 0.7853116628 | F37: 0.7482941439 | G37: 0.7646837007 | H37: 0.8849812216 | I37: 0.8014277575 | J37: 0.7949363415 | K37: 0.9602375395 | L37: 0.918040205 | M37: 0.9083015306 | N37: =+IFERROR(N17/N$19*100,0) -> 0.989136936 | O37: 1.020249547
B38: Márgenes de comercio, transporte y distribución de energía | D38: 15.53473474 | E38: 13.47305441 | F38: 14.98033791 | G38: 13.85764361 | H38: 20.95280218 | I38: 19.75805437 | J38: 19.70427976 | K38: 21.02945421 | L38: 19.68155406 | M38: 19.82857583 | N38: =+IFERROR(N18/N$19*100,0) -> 22.14559821 | O38: 23.95438548
B39: Oferta total | D39: 100 | E39: 100 | F39: 100 | G39: 100 | H39: 100 | I39: 100 | J39: 100 | K39: 100 | L39: 100 | M39: 100 | N39: =+IFERROR(N19/N$19*100,0) -> 100 | O39: 100
B40: Consumo intermedio (PC) | D40: 41.50277184 | E40: 41.5814492 | F40: 41.19090534 | G40: 41.2824557 | H40: 38.63900653 | I40: 39.30518549 | J40: 38.57392503 | K40: 37.67634786 | L40: 40.55331656 | M40: 39.67298756 | N40: =+IFERROR(N20/N$19*100,0) -> 36.58453204 | O40: 33.45964897
B41: Consumo final privado (PC) | D41: 57.55540148 | E41: 56.83809414 | F41: 58.16066107 | G41: 57.72984061 | H41: 60.64580196 | I41: 60.76390096 | J41: 59.69098576 | K41: 60.82801573 | L41: 57.34092391 | M41: 57.76071521 | N41: =+IFERROR(N21/N$19*100,0) -> 61.29011437 | O41: 63.72463415
B42: Consumo final del gobierno (PC) | D42: 0 | E42: 1.485784962 | F42: 0.4062790002 | G42: 0.6902770736 | H42: 0.8376372565 | I42: 0.05473002942 | J42: 0.1089723451 | K42: 1.528423975 | L42: 1.59311535 | M42: 1.44308417 | N42: =+IFERROR(N22/N$19*100,0) -> 1.887476043 | O42: 1.719793676
B43: Formación bruta de capital fijo (PC) | D43: 0 | E43: 0 | F43: 0 | G43: 0 | H43: 0 | I43: 0 | J43: 0 | K43: 0 | L43: 0 | M43: 0 | N43: =+IFERROR(N23/N$19*100,0) -> 0 | O43: 0
B44: Variación de existencias (PC) | D44: 0.4840937815 | E44: -0.09709082199 | F44: -0.04296396035 | G44: 0.04987064869 | H44: -0.2328331476 | I44: -0.2144803785 | J44: 1.537559741 | K44: -0.1186996934 | L44: 0.3041950919 | M44: 0.59430989 | N44: =+IFERROR(N24/N$19*100,0) -> -0.2069495526 | O44: 0.8641703106
B45: Exportaciones (FOB) | D45: 0.4577329008 | E45: 0.1917625216 | F45: 0.2851185529 | G45: 0.2475559716 | H45: 0.1103874099 | I45: 0.09066389655 | J45: 0.08855712514 | K45: 0.08591212679 | L45: 0.2084490948 | M45: 0.5289031643 | N45: =+IFERROR(N25/N$19*100,0) -> 0.4448270957 | O45: 0.2317528973
B46: Utilización total | D46: 100 | E46: 100 | F46: 100 | G46: 100 | H46: 100 | I46: 100 | J46: 100 | K46: 100 | L46: 100 | M46: 99.99999999 | N46: =+IFERROR(N26/N$19*100,0) -> 100 | O46: 100
B48: Fuente: Banco de Guatemala
B49: p/ Cifras preliminares
B51: Notas: NPG | C51: Nomenclatura de Productos para Guatemala
B52: CIF | C52: Costo, seguro y flete
B53: FOB | C53: Libre a bordo
B54: PB | C54: Precio básico
B55: PC | C55: Precio de comprador

Sheet Catálogo
B2: Productos
D4: Índice
B6: Cuadro | C6: Código NPG 1/ | D6: Concepto
B7: 3.1 | C7: P001 | D7: Maíz
B8: 3.2 | C8: P002 | D8: Frijoles
B9: 3.3 | C9: P003 | D9: Leguminosas (legumbres secas) y semillas oleaginosas
B10: 3.4 | C10: P004 | D10: Arroz
B11: 3.5 | C11: P005 | D11: Otros cereales
B12: 3.6 | C12: P006 | D12: Hortalizas
B13: 3.7 | C13: P007 | D13: Sandías y melones
B14: 3.8 | C14: P008 | D14: Ejotes y arvejas
B15: 3.9 | C15: P009 | D15: Raíces y tubérculos
B16: 3.10 | C16: P010 | D16: Caña de azúcar y otras plantas azucareras
B17: 3.11 | C17: P011 | D17: Tabaco y otras plantas no perennes
B18: 3.12 | C18: P012 | D18: Bananos, plátanos y otros
B19: 3.13 | C19: P013 | D19: Frutas tropicales y subtropicales
B20: 3.14 | C20: P014 | D20: Berries, otras frutas y semillas de frutas
B21: 3.15 | C21: P015 | D21: Palma africana
B22: 3.16 | C22: P016 | D22: Café en grano
B23: 3.17 | C23: P017 | D23: Cardamomo
B24: 3.18 | C24: P018 | D24: Caucho natural
B25: 3.19 | C25: P019 | D25: Propagación de plantas
B26: 3.20 | C26: P020 | D26: Otros frutos oleaginosos, otras plantas bebestibles y especias aromáticas
B27: 3.21 | C27: P021 | D27: Ganado bovino
B28: 3.22 | C28: P022 | D28: Ganado porcino y otro tipo de animales vivos n.c.p.
B29: 3.23 | C29: P023 | D29: Aves de corral
B30: 3.24 | C30: P024 | D30: Leche cruda
B31: 3.25 | C31: P025 | D31: Huevos
B32: 3.26 | C32: P026 | D32: Otros productos de animales vivos
B33: 3.27 | C33: P027 | D33: Troncos de madera y leña
B34: 3.28 | C34: P028 | D34: Productos forestales no madereros
B35: 3.29 | C35: P029 | D35: Peces vivos, frescos o refrigerados
B36: 3.30 | C36: P030 | D36: Crustáceos sin congelar y otros productos de la pesca
B37: 3.31 | C37: P031 | D37: Petróleo crudo y gas natural
B38: 3.32 | C38: P032 | D38: Minerales metálicos
B39: 3.33 | C39: P033 | D39: Minerales no metálicos
B40: 3.34 | C40: P034 | D40: Carne y despojos comestibles de ganado bovino; cueros y pieles de bovino y de otros animales
B41: 3.35 | C41: P035 | D41: Carne y despojos comestibles de ganado porcino
B42: 3.36 | C42: P036 | D42: Carne y despojos comestibles de aves
B43: 3.37 | C43: P037 | D43: Carne y despojos de otros animales y conservas y preparados de carne
B44: 3.38 | C44: P038 | D44: Pescado congelado, preparado o en conserva y sus productos
B45: 3.39 | C45: P039 | D45: Crustáceos, moluscos y demás invertebrados acuáticos congelados, preparados o en conserva y sus productos
B46: 3.40 | C46: P040 | D46: Vegetales preparados o en conserva, legumbres y papas
B47: 3.41 | C47: P041 | D47: Preparaciones y conservas de frutas y nueces
B48: 3.42 | C48: P042 | D48: Jugos de frutas
B49: 3.43 | C49: P043 | D49: Aceites de origen vegetal
B50: 3.44 | C50: P044 | D50: Margarina, grasas y otros aceites de origen animal y vegetal
B51: 3.45 | C51: P045 | D51: Leche líquida y crema procesada
B52: 3.46 | C52: P046 | D52: Otros productos lácteos n.c.p.
B53: 3.47 | C53: P047 | D53: Harina de trigo
B54: 3.48 | C54: P048 | D54: Arroz sin cáscara
B55: 3.49 | C55: P049 | D55: Otros productos de molinería, almidones y productos de almidón
B56: 3.50 | C56: P050 | D56: Pan y otros productos de panadería y repostería n.c.p.
B57: 3.51 | C57: P051 | D57: Tortillas de maíz, incluso tostadas, horneadas o fritas
B58: 3.52 | C58: P052 | D58: Azúcar de caña sin refinar y refinada, melaza y los demás azúcares n.c.p.
B59: 3.53 | C59: P053 | D59: Productos alimenticios n.c.p.
B60: 3.54 | C60: P054 | D60: Preparados para alimentación animal
B61: 3.55 | C61: P055 | D61: Aguardientes, licores, vinos, demás bebidas espirituosas y productos del tabaco
B62: 3.56 | C62: P056 | D62: Malta y cerveza de malta
B63: 3.57 | C63: P057 | D63: Bebidas no alcohólicas
B64: 3.58 | C64: P058 | D64: Aguas minerales y otras aguas embotelladas
B65: 3.59 | C65: P059 | D65: Hilados, tejidos, telas y otros productos textiles excepto prendas de vestir
B66: 3.60 | C66: P060 | D66: Prendas de vestir, adobo y teñido de pieles
B67: 3.61 | C67: P061 | D67: Cuero de piel curtida o adobada y cuero artificial o regenerado y artículos de cuero
B68: 3.62 | C68: P062 | D68: Calzado y sus partes, de cualquier material y de cualquier uso
B69: 3.63 | C69: P063 | D69: Madera aserrada y acepillada, productos de madera, corcho, paja y materiales trenzables
B70: 3.64 | C70: P064 | D70: Pasta de papel y papel
B71: 3.65 | C71: P065 | D71: Envases de papel y cartón
B72: 3.66 | C72: P066 | D72: Productos de la edición
B73: 3.67 | C73: P067 | D73: Productos de la impresión
B74: 3.68 | C74: P068 | D74: Gasolinas, diésel oil y fuel oils
B75: 3.69 | C75: P069 | D75: Aceites, grasas lubricantes y otros aceites preparados
B76: 3.70 | C76: P070 | D76: Gases de petróleo, otros productos de la refinación de petróleo n.c.p.
B77: 3.71 | C77: P071 | D77: Abonos, fertilizantes y pesticidas
B78: 3.72 | C78: P072 | D78: Pinturas, barnices, tintas y productos relacionados
B79: 3.73 | C79: P073 | D79: Jabón, preparados de limpieza, perfumes y preparados de toilet
B80: 3.74 | C80: P074 | D80: Otros productos químicos
B81: 3.75 | C81: P075 | D81: Productos farmacéuticos
B82: 3.76 | C82: P076 | D82: Productos de caucho y plástico
B83: 3.77 | C83: P077 | D83: Vidrio y productos de vidrio
B84: 3.78 | C84: P078 | D84: Productos de cerámica y arcilla
B85: 3.79 | C85: P079 | D85: Cemento, cal y yeso
B86: 3.80 | C86: P080 | D86: Artículos de hormigón, cemento y yeso
B87: 3.81 | C87: P081 | D87: Piedras talladas para construcción y otros productos minerales no metálicos n.c.p.
B88: 3.82 | C88: P082 | D88: Métales básicos de hierro y acero, productos primarios de metales preciosos y otros metales no ferrosos
B89: 3.83 | C89: P083 | D89: Productos metálicos estructurales y sus partes de hierro o de acero
B90: 3.84 | C90: P084 | D90: Otros productos elaborados de metal
B91: 3.85 | C91: P085 | D91: Maquinaria para usos generales y especiales, sus partes y piezas, excepto electrodomésticos
B92: 3.86 | C92: P086 | D92: Electrodomésticos y sus partes
B93: 3.87 | C93: P087 | D93: Maquinaria de oficina, contabilidad e informática, sus partes y piezas
B94: 3.88 | C94: P088 | D94: Maquinaria y aparatos eléctricos, sus partes y piezas
B95: 3.89 | C95: P089 | D95: Equipo y aparatos de radio, televisión y comunicaciones
B96: 3.90 | C96: P090 | D96: Aparatos médicos, instrumentos ópticos y de precisión, relojes
B97: 3.91 | C97: P091 | D97: Equipo de transporte
B98: 3.92 | C98: P092 | D98: Muebles
B99: 3.93 | C99: P093 | D99: Otros artículos n.c.p.
B100: 3.94 | C100: P094 | D100: Residuos y desechos
B101: 3.95 | C101: P095 | D101: Generación y distribución de energía eléctrica, gas, vapor y aire acondicionado
B102: 3.96 | C102: P096 | D102: Agua natural y distribución de agua natural
B103: 3.97 | C103: P097 | D103: Evacuación de aguas residuales, recogida, tratamiento y eliminación de desechos
B104: 3.98 | C104: P098 | D104: Edificaciones residenciales
B105: 3.99 | C105: P099 | D105: Edificaciones no residenciales
B106: 3.100 | C106: P100 | D106: Obras de ingeniería civil
B107: 3.101 | C107: P101 | D107: Servicios generales y especializados de construcción
B108: 3.102 | C108: P102 | D108: Servicios de comercio
B109: 3.103 | C109: P103 | D109: Mantenimiento y reparación de vehículos automotores y motocicletas
B110: 3.104 | C110: P104 | D110: Servicio de transporte de pasajeros por vía terrestre
B111: 3.105 | C111: P105 | D111: Servicio de transporte de carga por vía terrestre
B112: 3.106 | C112: P106 | D112: Otros tipos de transporte
B113: 3.107 | C113: P107 | D113: Servicios de almacenamiento y depósito
B114: 3.108 | C114: P108 | D114: Otros servicios de apoyo al transporte
B115: 3.109 | C115: P109 | D115: Servicios postales y de mensajería
B116: 3.110 | C116: P110 | D116: Servicio de alojamiento
B117: 3.111 | C117: P111 | D117: Servicio de suministro de comidas y bebidas
B118: 3.112 | C118: P112 | D118: Servicios de información, telecomunicaciones y radiodifusión
B119: 3.113 | C119: P113 | D119: Servicios de banco central
B120: 3.114 | C120: P114 | D120: Otros servicios financieros y servicios de banca de inversión
B121: 3.115 | C121: P115 | D121: Servicios de Intermediación Financiera Medidos Indirectamente (SIFMI)
B122: 3.116 | C122: P116 | D122: Servicios de seguro, reaseguro y fondos de pensiones
B123: 3.117 | C123: P117 | D123: Servicios auxiliares de la intermediación financiera
B124: 3.118 | C124: P118 | D124: Servicios de alquiler de vivienda
B125: 3.119 | C125: P119 | D125: Otros servicios inmobiliarios, excepto alquiler de vivienda
B126: 3.120 | C126: P120 | D126: Servicios jurídicos, de contabilidad, auditoría, teneduría de libros y consultoría fiscal
B127: 3.121 | C127: P121 | D127: Servicios de tecnología de la información
B128: 3.122 | C128: P122 | D128: Servicios de arquitectura e ingeniería, ensayos y análisis técnicos
B129: 3.123 | C129: P123 | D129: Otros servicios profesionales, científicos y técnicos
B130: 3.124 | C130: P124 | D130: Servicios de publicidad y estudios de mercado
B131: 3.125 | C131: P125 | D131: Servicios de arrendamiento o alquiler sin operador
B132: 3.126 | C132: P126 | D132: Servicios de agencias de empleo y de dotación de recursos humanos
B133: 3.127 | C133: P127 | D133: Servicios de agencias de viajes, operadores turísticos y actividades conexas
B134: 3.128 | C134: P128 | D134: Servicios de seguridad, sistemas de seguridad e investigación privada
B135: 3.129 | C135: P129 | D135: Servicios de limpieza
B136: 3.130 | C136: P130 | D136: Servicios telefónicos de centros de llamadas
B137: 3.131 | C137: P131 | D137: Servicios administrativos, de apoyo de oficina y otros servicios de apoyo a las empresas
B138: 3.132 | C138: P132 | D138: Servicios de mantenimiento, reparación e instalación de productos metálicos elaborados, maquinaria y equipo
B139: 3.133 | C139: P133 | D139: Servicios de reparación de otros bienes
B140: 3.134 | C140: P134 | D140: Servicios de apoyo a la agricultura, caza, silvicultura y pesca
B141: 3.135 | C141: P135 | D141: Servicios de apoyo a la explotación de minas y canteras y los relacionados con la distribución de electricidad, gas y agua
B142: 3.136 | C142: P136 | D142: Servicios de manufactura
B143: 3.137 | C143: P137 | D143: Servicios públicos del gobierno general
B144: 3.138 | C144: P138 | D144: Servicios públicos administrativos relacionados con la provisión de servicios educativos, de salud, servicios sociales, culturales y otros, sin contar los servicios de seguridad social
B145: 3.139 | C145: P139 | D145: Otros servicios administrativos
B146: 3.140 | C146: P140 | D146: Servicios públicos administrativos prestados a la comunidad en su conjunto
B147: 3.141 | C147: P141 | D147: Servicios administrativos relacionados con los sistemas de seguridad social de afiliación obligatoria
B148: 3.142 | C148: P142 | D148: Servicios de enseñanza
B149: 3.143 | C149: P143 | D149: Servicios de hospitalización
B150: 3.144 | C150: P144 | D150: Servicios médicos y dentales
B151: 3.145 | C151: P145 | D151: Otros servicios de atención de la salud humana
B152: 3.146 | C152: P146 | D152: Servicios audiovisuales, recreativos, culturales y deportivos
B153: 3.147 | C153: P147 | D153: Servicios de asociaciones que sirven a las empresas
B154: 3.148 | C154: P148 | D154: Servicios de asociaciones que sirven a los hogares
B155: 3.149 | C155: P149 | D155: Otros servicios
B156: 3.150 | C156: P150 | D156: Servicios domésticos
B157: 3.151 | C157: P151 | D157: Compras directas en el exterior por residentes
B158: 3.152 | C158: P152 | D158: Compras directas en el territorio nacional por no residentes
B159: 1/ Nomenclatura de Productos para Guatemala

Sheet Datos
A1: Código | B1: Producto | C1: Monto | D1: Concepto | E1: Año
A2: P001 | B2: Maíz | C2: 4738.527595 | D2: Producción (PB) | E2: 2013
A3: P002 | B3: Frijoles | C3: 1539.416785 | D3: Producción (PB) | E3: 2013
A4: P003 | B4: Leguminosas (legumbres secas) y semillas oleaginosas | C4: 664.937441 | D4: Producción (PB) | E4: 2013
A5: P004 | B5: Arroz | C5: 116.239071 | D5: Producción (PB) | E5: 2013
A6: P005 | B6: Otros cereales | C6: 106.479292 | D6: Producción (PB) | E6: 2013
A7: P006 | B7: Hortalizas | C7: 5264.68204 | D7: Producción (PB) | E7: 2013
A8: P007 | B8: Sandías y melones | C8: 1261.682478 | D8: Producción (PB) | E8: 2013
A9: P008 | B9: Ejotes y arvejas | C9: 771.170682 | D9: Producción (PB) | E9: 2013
A10: P009 | B10: Raíces y tubérculos | C10: 1747.910875 | D10: Producción (PB) | E10: 2013
A11: P010 | B11: Caña de azúcar y otras plantas azucareras | C11: 6154.02175 | D11: Producción (PB) | E11: 2013
A12: P011 | B12: Tabaco y otras plantas no perennes | C12: 1283.655291 | D12: Producción (PB) | E12: 2013
A13: P012 | B13: Bananos, plátanos y otros | C13: 6040.070045 | D13: Producción (PB) | E13: 2013
A14: P013 | B14: Frutas tropicales y subtropicales | C14: 1653.653126 | D14: Producción (PB) | E14: 2013
A15: P014 | B15: Berries, otras frutas y semillas de frutas | C15: 1714.381488 | D15: Producción (PB) | E15: 2013
A16: P015 | B16: Palma africana | C16: 2414.898313 | D16: Producción (PB) | E16: 2013
A17: P016 | B17: Café en grano | C17: 9653.351541 | D17: Producción (PB) | E17: 2013
A18: P017 | B18: Cardamomo | C18: 2322.396207 | D18: Producción (PB) | E18: 2013
A19: P018 | B19: Caucho natural | C19: 2982.829582 | D19: Producción (PB) | E19: 2013
A20: P019 | B20: Propagación de plantas | C20: 566.545106 | D20: Producción (PB) | E20: 2013
A21: P020 | B21: Otros frutos oleaginosos, otras plantas bebestibles y especias aromáticas | C21: 232.125537 | D21: Producción (PB) | E21: 2013
A22: P021 | B22: Ganado bovino | C22: 4026.881867 | D22: Producción (PB) | E22: 2013
A23: P022 | B23: Ganado porcino y otro tipo de animales vivos n.c.p. | C23: 1370.894191 | D23: Producción (PB) | E23: 2013
A24: P023 | B24: Aves de corral | C24: 6672.833957 | D24: Producción (PB) | E24: 2013
A25: P024 | B25: Leche cruda | C25: 1747.589759 | D25: Producción (PB) | E25: 2013
A26: P025 | B26: Huevos | C26: 2841.039073 | D26: Producción (PB) | E26: 2013
A27: P026 | B27: Otros productos de animales vivos | C27: 115.807453 | D27: Producción (PB) | E27: 2013
A28: P027 | B28: Troncos de madera y leña | C28: 4653.651907 | D28: Producción (PB) | E28: 2013
A29: P028 | B29: Productos forestales no madereros | C29: 231.532974 | D29: Producción (PB) | E29: 2013
A30: P029 | B30: Peces vivos, frescos o refrigerados | C30: 885.904901 | D30: Producción (PB) | E30: 2013
A31: P030 | B31: Crustáceos sin congelar y otros productos de la pesca | C31: 888.228154 | D31: Producción (PB) | E31: 2013
A32: P031 | B32: Petróleo crudo y gas natural | C32: 2522.564569 | D32: Producción (PB) | E32: 2013
A33: P032 | B33: Minerales metálicos | C33: 4027.688244 | D33: Producción (PB) | E33: 2013
A34: P033 | B34: Minerales no metálicos | C34: 1899.979974 | D34: Producción (PB) | E34: 2013
A35: P034 | B35: Carne y despojos comestibles de ganado bovino; cueros y pieles de bovino y de otros animales | C35: 6361.349728 | D35: Producción (PB) | E35: 2013
A36: P035 | B36: Carne y despojos comestibles de ganado porcino | C36: 1270.384545 | D36: Producción (PB) | E36: 2013
A37: P036 | B37: Carne y despojos comestibles de aves | C37: 7706.970671 | D37: Producción (PB) | E37: 2013
A38: P037 | B38: Carne y despojos de otros animales y conservas y preparados de carne | C38: 2521.85939 | D38: Producción (PB) | E38: 2013
A39: P038 | B39: Pescado congelado, preparado o en conserva y sus productos | C39: 607.665778 | D39: Producción (PB) | E39: 2013
A40: P039 | B40: Crustáceos, moluscos y demás invertebrados acuáticos congelados, preparados o en conserva y sus productos | C40: 468.218129 | D40: Producción (PB) | E40: 2013
A41: P040 | B41: Vegetales preparados o en conserva, legumbres y papas | C41: 1010.114732 | D41: Producción (PB) | E41: 2013
A42: P041 | B42: Preparaciones y conservas de frutas y nueces | C42: 987.500694 | D42: Producción (PB) | E42: 2013
A43: P042 | B43: Jugos de frutas | C43: 1135.475539 | D43: Producción (PB) | E43: 2013
A44: P043 | B44: Aceites de origen vegetal | C44: 4548.242705 | D44: Producción (PB) | E44: 2013
A45: P044 | B45: Margarina, grasas y otros aceites de origen animal y vegetal | C45: 1112.926834 | D45: Producción (PB) | E45: 2013
A46: P045 | B46: Leche líquida y crema procesada | C46: 1036.488657 | D46: Producción (PB) | E46: 2013
A47: P046 | B47: Otros productos lácteos n.c.p. | C47: 1933.423662 | D47: Producción (PB) | E47: 2013
A48: P047 | B48: Harina de trigo | C48: 2168.863742 | D48: Producción (PB) | E48: 2013
A49: P048 | B49: Arroz sin cáscara | C49: 543.081315 | D49: Producción (PB) | E49: 2013
A50: P049 | B50: Otros productos de molinería, almidones y productos de almidón | C50: 1139.659742 | D50: Producción (PB) | E50: 2013
A51: P050 | B51: Pan y otros productos de panadería y repostería n.c.p. | C51: 7600.812049 | D51: Producción (PB) | E51: 2013
A52: P051 | B52: Tortillas de maíz, incluso tostadas, horneadas o fritas | C52: 5718.290893 | D52: Producción (PB) | E52: 2013
A53: P052 | B53: Azúcar de caña sin refinar y refinada, melaza y los demás azúcares n.c.p. | C53: 13042.7613 | D53: Producción (PB) | E53: 2013
A54: P053 | B54: Productos alimenticios n.c.p. | C54: 7151.658218 | D54: Producción (PB) | E54: 2013
A55: P054 | B55: Preparados para alimentación animal | C55: 6030.894966 | D55: Producción (PB) | E55: 2013
A56: P055 | B56: Aguardientes, licores, vinos, demás bebidas espirituosas y productos del tabaco | C56: 1493.556635 | D56: Producción (PB) | E56: 2013
A57: P056 | B57: Malta y cerveza de malta | C57: 1419.583367 | D57: Producción (PB) | E57: 2013
A58: P057 | B58: Bebidas no alcohólicas | C58: 7152.15783 | D58: Producción (PB) | E58: 2013
A59: P058 | B59: Aguas minerales y otras aguas embotelladas | C59: 1151.290631 | D59: Producción (PB) | E59: 2013
A60: P059 | B60: Hilados, tejidos, telas y otros productos textiles excepto prendas de vestir | C60: 4618.594821 | D60: Producción (PB) | E60: 2013
A61: P060 | B61: Prendas de vestir, adobo y teñido de pieles | C61: 6479.829007 | D61: Producción (PB) | E61: 2013
A62: P061 | B62: Cuero de piel curtida o adobada y cuero artificial o regenerado y artículos de cuero | C62: 1141.118617 | D62: Producción (PB) | E62: 2013
A63: P062 | B63: Calzado y sus partes, de cualquier material y de cualquier uso | C63: 1371.703969 | D63: Producción (PB) | E63: 2013
A64: P063 | B64: Madera aserrada y acepillada, productos de madera, corcho, paja y materiales trenzables | C64: 3232.631261 | D64: Producción (PB) | E64: 2013
A65: P064 | B65: Pasta de papel y papel | C65: 1609.073546 | D65: Producción (PB) | E65: 2013
A66: P065 | B66: Envases de papel y cartón | C66: 2720.922128 | D66: Producción (PB) | E66: 2013
A67: P066 | B67: Productos de la edición | C67: 1307.726848 | D67: Producción (PB) | E67: 2013
A68: P067 | B68: Productos de la impresión | C68: 1683.715455 | D68: Producción (PB) | E68: 2013
A69: P068 | B69: Gasolinas, diésel oil y fuel oils | C69: 119.187526 | D69: Producción (PB) | E69: 2013
A70: P069 | B70: Aceites, grasas lubricantes y otros aceites preparados | C70: 0 | D70: Producción (PB) | E70: 2013
A71: P070 | B71: Gases de petróleo, otros productos de la refinación de petróleo n.c.p. | C71: 187.927719 | D71: Producción (PB) | E71: 2013
A72: P071 | B72: Abonos, fertilizantes y pesticidas | C72: 4425.010086 | D72: Producción (PB) | E72: 2013
A73: P072 | B73: Pinturas, barnices, tintas y productos relacionados | C73: 1030.856834 | D73: Producción (PB) | E73: 2013
A74: P073 | B74: Jabón, preparados de limpieza, perfumes y preparados de toilet | C74: 4141.020837 | D74: Producción (PB) | E74: 2013
A75: P074 | B75: Otros productos químicos | C75: 3266.282201 | D75: Producción (PB) | E75: 2013
A76: P075 | B76: Productos farmacéuticos | C76: 2427.519299 | D76: Producción (PB) | E76: 2013
A77: P076 | B77: Productos de caucho y plástico | C77: 7898.715267 | D77: Producción (PB) | E77: 2013
A78: P077 | B78: Vidrio y productos de vidrio | C78: 698.56315 | D78: Producción (PB) | E78: 2013
A79: P078 | B79: Productos de cerámica y arcilla | C79: 1318.059207 | D79: Producción (PB) | E79: 2013
A80: P079 | B80: Cemento, cal y yeso | C80: 4270.903795 | D80: Producción (PB) | E80: 2013
A81: P080 | B81: Artículos de hormigón, cemento y yeso | C81: 2121.428057 | D81: Producción (PB) | E81: 2013
A82: P081 | B82: Piedras talladas para construcción y otros productos minerales no metálicos n.c.p. | C82: 587.784903 | D82: Producción (PB) | E82: 2013
A83: P082 | B83: Métales básicos de hierro y acero, productos primarios de metales preciosos y otros metales no ferrosos | C83: 4879.717582 | D83: Producción (PB) | E83: 2013
A84: P083 | B84: Productos metálicos estructurales y sus partes de hierro o de acero | C84: 1571.093937 | D84: Producción (PB) | E84: 2013
A85: P084 | B85: Otros productos elaborados de metal | C85: 2538.605364 | D85: Producción (PB) | E85: 2013
A86: P085 | B86: Maquinaria para usos generales y especiales, sus partes y piezas, excepto electrodomésticos | C86: 1942.761139 | D86: Producción (PB) | E86: 2013
A87: P086 | B87: Electrodomésticos y sus partes | C87: 0 | D87: Producción (PB) | E87: 2013
A88: P087 | B88: Maquinaria de oficina, contabilidad e informática, sus partes y piezas | C88: 0 | D88: Producción (PB) | E88: 2013
A89: P088 | B89: Maquinaria y aparatos eléctricos, sus partes y piezas | C89: 1258.812713 | D89: Producción (PB) | E89: 2013
A90: P089 | B90: Equipo y aparatos de radio, televisión y comunicaciones | C90: 0 | D90: Producción (PB) | E90: 2013
A91: P090 | B91: Aparatos médicos, instrumentos ópticos y de precisión, relojes | C91: 48.189135 | D91: Producción (PB) | E91: 2013
A92: P091 | B92: Equipo de transporte | C92: 665.764401 | D92: Producción (PB) | E92: 2013
A93: P092 | B93: Muebles | C93: 4894.338439 | D93: Producción (PB) | E93: 2013
A94: P093 | B94: Otros artículos n.c.p. | C94: 1571.347226 | D94: Producción (PB) | E94: 2013
A95: P094 | B95: Residuos y desechos | C95: 1356.766731 | D95: Producción (PB) | E95: 2013
A96: P095 | B96: Generación y distribución de energía eléctrica, gas, vapor y aire acondicionado | C96: 14244.33333 | D96: Producción (PB) | E96: 2013
A97: P096 | B97: Agua natural y distribución de agua natural | C97: 3403.611967 | D97: Producción (PB) | E97: 2013
A98: P097 | B98: Evacuación de aguas residuales, recogida, tratamiento y eliminación de desechos | C98: 729.175867 | D98: Producción (PB) | E98: 2013
A99: P098 | B99: Edificaciones residenciales | C99: 15309.23523 | D99: Producción (PB) | E99: 2013
A100: P099 | B100: Edificaciones no residenciales | C100: 6341.69555 | D100: Producción (PB) | E100: 2013
A101: P100 | B101: Obras de ingeniería civil | C101: 11112.92431 | D101: Producción (PB) | E101: 2013
A102: P101 | B102: Servicios generales y especializados de construcción | C102: 9928.686898 | D102: Producción (PB) | E102: 2013
A103: P102 | B103: Servicios de comercio | C103: 102043.6382 | D103: Producción (PB) | E103: 2013
A104: P103 | B104: Mantenimiento y reparación de vehículos automotores y motocicletas | C104: 8257.924185 | D104: Producción (PB) | E104: 2013
A105: P104 | B105: Servicio de transporte de pasajeros por vía terrestre | C105: 5949.810316 | D105: Producción (PB) | E105: 2013
A106: P105 | B106: Servicio de transporte de carga por vía terrestre | C106: 11417.8584 | D106: Producción (PB) | E106: 2013
A107: P106 | B107: Otros tipos de transporte | C107: 484.035527 | D107: Producción (PB) | E107: 2013
A108: P107 | B108: Servicios de almacenamiento y depósito | C108: 259.314217 | D108: Producción (PB) | E108: 2013
A109: P108 | B109: Otros servicios de apoyo al transporte | C109: 5874.554921 | D109: Producción (PB) | E109: 2013
A110: P109 | B110: Servicios postales y de mensajería | C110: 1105.401614 | D110: Producción (PB) | E110: 2013
A111: P110 | B111: Servicio de alojamiento | C111: 1875.445179 | D111: Producción (PB) | E111: 2013
A112: P111 | B112: Servicio de suministro de comidas y bebidas | C112: 27427.26965 | D112: Producción (PB) | E112: 2013
A113: P112 | B113: Servicios de información, telecomunicaciones y radiodifusión | C113: 23512.79258 | D113: Producción (PB) | E113: 2013
A114: P113 | B114: Servicios de banco central | C114: 696.027747 | D114: Producción (PB) | E114: 2013
A115: P114 | B115: Otros servicios financieros y servicios de banca de inversión | C115: 2169.249763 | D115: Producción (PB) | E115: 2013
A116: P115 | B116: Servicios de Intermediación Financiera Medidos Indirectamente (SIFMI) | C116: 13885.11329 | D116: Producción (PB) | E116: 2013
A117: P116 | B117: Servicios de seguro, reaseguro y fondos de pensiones | C117: 3772.903646 | D117: Producción (PB) | E117: 2013
A118: P117 | B118: Servicios auxiliares de la intermediación financiera | C118: 4359.168408 | D118: Producción (PB) | E118: 2013
A119: P118 | B119: Servicios de alquiler de vivienda | C119: 30462.77487 | D119: Producción (PB) | E119: 2013
A120: P119 | B120: Otros servicios inmobiliarios, excepto alquiler de vivienda | C120: 10648.61536 | D120: Producción (PB) | E120: 2013
A121: P120 | B121: Servicios jurídicos, de contabilidad, auditoría, teneduría de libros y consultoría fiscal | C121: 3795.327853 | D121: Producción (PB) | E121: 2013
A122: P121 | B122: Servicios de tecnología de la información | C122: 2234.780423 | D122: Producción (PB) | E122: 2013
A123: P122 | B123: Servicios de arquitectura e ingeniería, ensayos y análisis técnicos | C123: 2625.157143 | D123: Producción (PB) | E123: 2013
A124: P123 | B124: Otros servicios profesionales, científicos y técnicos | C124: 6769.112424 | D124: Producción (PB) | E124: 2013
A125: P124 | B125: Servicios de publicidad y estudios de mercado | C125: 4401.470578 | D125: Producción (PB) | E125: 2013
A126: P125 | B126: Servicios de arrendamiento o alquiler sin operador | C126: 4856.550286 | D126: Producción (PB) | E126: 2013
A127: P126 | B127: Servicios de agencias de empleo y de dotación de recursos humanos | C127: 5859.536838 | D127: Producción (PB) | E127: 2013
A128: P127 | B128: Servicios de agencias de viajes, operadores turísticos y actividades conexas | C128: 707.712401 | D128: Producción (PB) | E128: 2013
A129: P128 | B129: Servicios de seguridad, sistemas de seguridad e investigación privada | C129: 3393.231597 | D129: Producción (PB) | E129: 2013
A130: P129 | B130: Servicios de limpieza | C130: 1014.429111 | D130: Producción (PB) | E130: 2013
A131: P130 | B131: Servicios telefónicos de centros de llamadas | C131: 2128.528255 | D131: Producción (PB) | E131: 2013
A132: P131 | B132: Servicios administrativos, de apoyo de oficina y otros servicios de apoyo a las empresas | C132: 2293.638366 | D132: Producción (PB) | E132: 2013
A133: P132 | B133: Servicios de mantenimiento, reparación e instalación de productos metálicos elaborados, maquinaria y equipo | C133: 3791.258753 | D133: Producción (PB) | E133: 2013
A134: P133 | B134: Servicios de reparación de otros bienes | C134: 1250.193108 | D134: Producción (PB) | E134: 2013
A135: P134 | B135: Servicios de apoyo a la agricultura, caza, silvicultura y pesca | C135: 3070.595977 | D135: Producción (PB) | E135: 2013
A136: P135 | B136: Servicios de apoyo a la explotación de minas y canteras y los relacionados con la distribución de electricidad, gas y agua | C136: 381.873379 | D136: Producción (PB) | E136: 2013
A137: P136 | B137: Servicios de manufactura | C137: 6817.206147 | D137: Producción (PB) | E137: 2013
A138: P137 | B138: Servicios públicos del gobierno general | C138: 10283.76588 | D138: Producción (PB) | E138: 2013
A139: P138 | B139: Servicios públicos administrativos relacionados con la provisión de servicios educativos, de salud, servicios sociales, culturales y otros, sin contar los servicios de seguridad social | C139: 1832.167601 | D139: Producción (PB) | E139: 2013
A140: P139 | B140: Otros servicios administrativos | C140: 4099.489473 | D140: Producción (PB) | E140: 2013
A141: P140 | B141: Servicios públicos administrativos prestados a la comunidad en su conjunto | C141: 8682.333652 | D141: Producción (PB) | E141: 2013
A142: P141 | B142: Servicios administrativos relacionados con los sistemas de seguridad social de afiliación obligatoria | C142: 738.227703 | D142: Producción (PB) | E142: 2013
A143: P142 | B143: Servicios de enseñanza | C143: 19863.93795 | D143: Producción (PB) | E143: 2013
A144: P143 | B144: Servicios de hospitalización | C144: 6404.993844 | D144: Producción (PB) | E144: 2013
A145: P144 | B145: Servicios médicos y dentales | C145: 4544.550809 | D145: Producción (PB) | E145: 2013
A146: P145 | B146: Otros servicios de atención de la salud humana | C146: 2663.413607 | D146: Producción (PB) | E146: 2013
A147: P146 | B147: Servicios audiovisuales, recreativos, culturales y deportivos | C147: 2198.514965 | D147: Producción (PB) | E147: 2013
A148: P147 | B148: Servicios de asociaciones que sirven a las empresas | C148: 265.549519 | D148: Producción (PB) | E148: 2013
A149: P148 | B149: Servicios de asociaciones que sirven a los hogares | C149: 1925.973125 | D149: Producción (PB) | E149: 2013
A150: P149 | B150: Otros servicios | C150: 7674.611495 | D150: Producción (PB) | E150: 2013
A151: P150 | B151: Servicios domésticos | C151: 7294.099819 | D151: Producción (PB) | E151: 2013
A152: P151 | B152: Compras directas en el exterior por residentes | C152: 0 | D152: Producción (PB) | E152: 2013
A153: P152 | B153: Compras directas en el territorio nacional por no residentes | C153: 0 | D153: Producción (PB) | E153: 2013
A154: P001 | B154: Maíz | C154: 0 | D154: Impuestos sobre los productos, excepto IVA e impuestos sobre las importaciones | E154: 2013
A155: P002 | B155: Frijoles | C155: 0 | D155: Impuestos sobre los productos, excepto IVA e impuestos sobre las importaciones | E155: 2013
A156: P003 | B156: Leguminosas (legumbres secas) y semillas oleaginosas | C156: 0 | D156: Impuestos sobre los productos, excepto IVA e impuestos sobre las importaciones | E156: 2013
A157: P004 | B157: Arroz | C157: 0 | D157: Impuestos sobre los productos, excepto IVA e impuestos sobre las importaciones | E157: 2013
A158: P005 | B158: Otros cereales | C158: 0 | D158: Impuestos sobre los productos, excepto IVA e impuestos sobre las importaciones | E158: 2013
A159: P006 | B159: Hortalizas | C159: 0 | D159: Impuestos sobre los productos, excepto IVA e impuestos sobre las importaciones | E159: 2013
A160: P007 | B160: Sandías y melones | C160: 0 | D160: Impuestos sobre los productos, excepto IVA e impuestos sobre las importaciones | E160: 2013
A161: P008 | B161: Ejotes y arvejas | C161: 0 | D161: Impuestos sobre los productos, excepto IVA e impuestos sobre las importaciones | E161: 2013
A162: P009 | B162: Raíces y tubérculos | C162: 0 | D162: Impuestos sobre los productos, excepto IVA e impuestos sobre las importaciones | E162: 2013
A163: P010 | B163: Caña de azúcar y otras plantas azucareras | C163: 0 | D163: Impuestos sobre los productos, excepto IVA e impuestos sobre las importaciones | E163: 2013
A164: P011 | B164: Tabaco y otras plantas no perennes | C164: 0 | D164: Impuestos sobre los productos, excepto IVA e impuestos sobre las importaciones | E164: 2013
A165: P012 | B165: Bananos, plátanos y otros | C165: 0 | D165: Impuestos sobre los productos, excepto IVA e impuestos sobre las importaciones | E165: 2013
A166: P013 | B166: Frutas tropicales y subtropicales | C166: 0 | D166: Impuestos sobre los productos, excepto IVA e impuestos sobre las importaciones | E166: 2013
A167: P014 | B167: Berries, otras frutas y semillas de frutas | C167: 0 | D167: Impuestos sobre los productos, excepto IVA e impuestos sobre las importaciones | E167: 2013
A168: P015 | B168: Palma africana | C168: 0 | D168: Impuestos sobre los productos, excepto IVA e impuestos sobre las importaciones | E168: 2013
A169: P016 | B169: Café en grano | C169: 56.389183 | D169: Impuestos sobre los productos, excepto IVA e impuestos sobre las importaciones | E169: 2013
A170: P017 | B170: Cardamomo | C170: 0 | D170: Impuestos sobre los productos, excepto IVA e impuestos sobre las importaciones | E170: 2013
A171: P018 | B171: Caucho natural | C171: 0 | D171: Impuestos sobre los productos, excepto IVA e impuestos sobre las importaciones | E171: 2013
A172: P019 | B172: Propagación de plantas | C172: 0 | D172: Impuestos sobre los productos, excepto IVA e impuestos sobre las importaciones | E172: 2013
A173: P020 | B173: Otros frutos oleaginosos, otras plantas bebestibles y especias aromáticas | C173: 0 | D173: Impuestos sobre los productos, excepto IVA e impuestos sobre las importaciones | E173: 2013
A174: P021 | B174: Ganado bovino | C174: 0 | D174: Impuestos sobre los productos, excepto IVA e impuestos sobre las importaciones | E174: 2013
A175: P022 | B175: Ganado porcino y otro tipo de animales vivos n.c.p. | C175: 0 | D175: Impuestos sobre los productos, excepto IVA e impuestos sobre las importaciones | E175: 2013
A176: P023 | B176: Aves de corral | C176: 0 | D176: Impuestos sobre los productos, excepto IVA e impuestos sobre las importaciones | E176: 2013
A177: P024 | B177: Leche cruda | C177: 0 | D177: Impuestos sobre los productos, excepto IVA e impuestos sobre las importaciones | E177: 2013
A178: P025 | B178: Huevos | C178: 0 | D178: Impuestos sobre los productos, excepto IVA e impuestos sobre las importaciones | E178: 2013
A179: P026 | B179: Otros productos de animales vivos | C179: 0 | D179: Impuestos sobre los productos, excepto IVA e impuestos sobre las importaciones | E179: 2013
A180: P027 | B180: Troncos de madera y leña | C180: 0 | D180: Impuestos sobre los productos, excepto IVA e impuestos sobre las importaciones | E180: 2013
A181: P028 | B181: Productos forestales no madereros | C181: 0 | D181: Impuestos sobre los productos, excepto IVA e impuestos sobre las importaciones | E181: 2013
A182: P029 | B182: Peces vivos, frescos o refrigerados | C182: 0 | D182: Impuestos sobre los productos, excepto IVA e impuestos sobre las importaciones | E182: 2013
A183: P030 | B183: Crustáceos sin congelar y otros productos de la pesca | C183: 0 | D183: Impuestos sobre los productos, excepto IVA e impuestos sobre las importaciones | E183: 2013
A184: P031 | B184: Petróleo crudo y gas natural | C184: 0 | D184: Impuestos sobre los productos, excepto IVA e impuestos sobre las importaciones | E184: 2013
A185: P032 | B185: Minerales metálicos | C185: 0 | D185: Impuestos sobre los productos, excepto IVA e impuestos sobre las importaciones | E185: 2013
A186: P033 | B186: Minerales no metálicos | C186: 0 | D186: Impuestos sobre los productos, excepto IVA e impuestos sobre las importaciones | E186: 2013
A187: P034 | B187: Carne y despojos comestibles de ganado bovino; cueros y pieles de bovino y de otros animales | C187: 0 | D187: Impuestos sobre los productos, excepto IVA e impuestos sobre las importaciones | E187: 2013
A188: P035 | B188: Carne y despojos comestibles de ganado porcino | C188: 0 | D188: Impuestos sobre los productos, excepto IVA e impuestos sobre las importaciones | E188: 2013
A189: P036 | B189: Carne y despojos comestibles de aves | C189: 0 | D189: Impuestos sobre los productos, excepto IVA e impuestos sobre las importaciones | E189: 2013
A190: P037 | B190: Carne y despojos de otros animales y conservas y preparados de carne | C190: 0 | D190: Impuestos sobre los productos, excepto IVA e impuestos sobre las importaciones | E190: 2013
A191: P038 | B191: Pescado congelado, preparado o en conserva y sus productos | C191: 0 | D191: Impuestos sobre los productos, excepto IVA e impuestos sobre las importaciones | E191: 2013
A192: P039 | B192: Crustáceos, moluscos y demás invertebrados acuáticos congelados, preparados o en conserva y sus productos | C192: 0 | D192: Impuestos sobre los productos, excepto IVA e impuestos sobre las importaciones | E192: 2013
A193: P040 | B193: Vegetales preparados o en conserva, legumbres y papas | C193: 0 | D193: Impuestos sobre los productos, excepto IVA e impuestos sobre las importaciones | E193: 2013
A194: P041 | B194: Preparaciones y conservas de frutas y nueces | C194: 0 | D194: Impuestos sobre los productos, excepto IVA e impuestos sobre las importaciones | E194: 2013
A195: P042 | B195: Jugos de frutas | C195: 29.591398 | D195: Impuestos sobre los productos, excepto IVA e impuestos sobre las importaciones | E195: 2013
A196: P043 | B196: Aceites de origen vegetal | C196: 0 | D196: Impuestos sobre los productos, excepto IVA e impuestos sobre las importaciones | E196: 2013
A197: P044 | B197: Margarina, grasas y otros aceites de origen animal y vegetal | C197: 0 | D197: Impuestos sobre los productos, excepto IVA e impuestos sobre las importaciones | E197: 2013
A198: P045 | B198: Leche líquida y crema procesada | C198: 0 | D198: Impuestos sobre los productos, excepto IVA e impuestos sobre las importaciones | E198: 2013
A199: P046 | B199: Otros productos lácteos n.c.p. | C199: 1.291508 | D199: Impuestos sobre los productos, excepto IVA e impuestos sobre las importaciones | E199: 2013
A200: P047 | B200: Harina de trigo | C200: 0 | D200: Impuestos sobre los productos, excepto IVA e impuestos sobre las importaciones | E200: 2013
... 4300 more rows
